[Event "Turkish Second League 2019"]
[Site "Konya"]
[Date "2019.07.28"]
[Round "9"]
[White "Demirag, Batuhan"]
[Black "Zor, Alber Kadir"]
[Result "0-1"]
[ECO "E60"]
[WhiteElo "1939"]
[BlackElo "2160"]
[Annotator "NA"]
[PlyCount "70"]
[EventDate "2019.07.22"]
[EventType "team-tourn"]
[EventCountry "TUR"]
[SourceTitle "playchess.com"]
[Source "ChessBase"]
[SourceQuality "1"]
[TimeControl "5400+30"]

1. Nf3 {[%emt 0:00:30]} Nf6 {[%emt 0:03:30]} 2. c4 {[%emt 0:00:30]} g6 {[%emt 0:00:30]} 3. b3 {[%emt 0:00:30]} Bg7 {[%emt 0:00:30]} 4. Bb2 {[%emt 0:00:30]} O-O {[%emt 0:00:00]} 5. g3 {[%emt 0:00:00]} d6 {[%emt 0:00:00]} 6. d4 {[%emt 0:00:00]} e5 {[%emt 0:00:00]} 7. dxe5 {[%emt 0:00:30]} dxe5 {[%emt 0:00:00]} 8. Qxd8 {[%emt 0:06:30]} Rxd8 {[%emt 0:03:30]} 9. Bxe5 {[%emt 0:00:30]} Nc6 {[%emt 0:03:30]} 10. Bc3 {[%emt 0:03:30]} Ne4 {[%emt 0:03:30]} 11. Bxg7 {[%emt 0:00:30]} Kxg7 {[%emt 0:00:00]} 12. a3 {[%emt 0:05:30]} Na5 {[%emt 0:04:00]} 13. b4 {[%emt 0:08:30]} Nxc4 {[%emt 0:01:30]} 14. Bg2 {[%emt 0:00:30]} c6 {[%emt 0:05:30]} 15. O-O {[%emt 0:02:30]} a5 {[%emt 0:00:30]} 16. bxa5 {[%emt 0:03:30]} Rxa5 {[%emt 0:01:30]} 17. Rc1 {[%emt 0:01:30]} Be6 {[%emt 0:03:30]} 18. e3 {[%emt 0:07:30]} Nc5 {[%emt 0:04:30]} 19. Nd4 {[%emt 0:05:30]} Rxd4 {[%emt 0:01:30]} 20. exd4 {[%emt 0:00:30]} Nb3 {[%emt 0:00:30]} 21. Nc3 {[%emt 0:02:30]} Nxc1 {[%emt 0:01:30]} 22. Rxc1 {[%emt 0:00:30]} Rxa3 {[%emt 0:00:00]} 23. d5 {[%emt 0:00:00]} cxd5 {[%emt 0:01:00]} 24. Nxd5 {[%emt 0:00:00]} Nd6 {[%emt 0:00:30]} 25. Nf4 {[%emt 0:02:30]} Kf6 {[%emt 0:01:30]} 26. h4 {[%emt 0:01:30]} Ra6 {[%emt 0:12:30]} 27. Rc7 {[%emt 0:05:30]} b5 {[%emt 0:00:30]} 28. Nd3 {[%emt 0:05:30]} Ra1+ {[%emt 0:07:30]} 29. Kh2 {[%emt 0:00:30]} Rd1 {[%emt 0:00:30]} 30. Nc5 {[%emt 0:01:30]} Rd2 {[%emt 0:05:30]} 31. Kg1 {[%emt 0:00:30]} b4 {[%emt 0:00:30]} 32. Rc6 {[%emt 0:04:30]} b3 {[%emt 0:04:30]} 33. Rb6 {[%emt 0:00:30]} b2 {[%emt 0:00:30]} 34. Be4 {[%emt 0:01:30]} Kg7 {[%emt 0:10:30]} 35. Bf3 {[%emt 0:03:30]} Ba2 {[%emt 0:00:30]} 0-1

[Event "Turkish Second League 2019"]
[Site "Konya"]
[Date "2019.07.28"]
[Round "9"]
[White "Oztekin, Kerem Can"]
[Black "Donmez, Taha Mert"]
[Result "0-1"]
[ECO "B15"]
[WhiteElo "1933"]
[BlackElo "1961"]
[Annotator "NA"]
[PlyCount "158"]
[EventDate "2019.07.22"]
[EventType "team-tourn"]
[EventCountry "TUR"]
[SourceTitle "playchess.com"]
[Source "ChessBase"]
[SourceQuality "1"]
[TimeControl "5400+30"]

1. e4 {[%emt 0:00:30]} c6 {[%emt 0:00:30]} 2. d4 {[%emt 0:00:00]} d5 {[%emt 0:00:30]} 3. Nc3 {[%emt 0:00:00]} b5 {[%emt 0:00:00]} 4. a3 {[%emt 0:02:30]} a6 {[%emt 0:00:00]} 5. h3 {[%emt 0:00:30]} dxe4 {[%emt 0:06:30]} 6. Nxe4 {[%emt 0:00:30]} Nf6 {[%emt 0:00:30]} 7. Nxf6+ {[%emt 0:07:30]} exf6 {[%emt 0:00:00]} 8. Nf3 {[%emt 0:00:30]} Bd6 {[%emt 0:01:00]} 9. Be3 {[%emt 0:06:30]} Be6 {[%emt 0:00:30]} 10. Bd3 {[%emt 0:06:30]} Nd7 {[%emt 0:00:30]} 11. O-O {[%emt 0:01:30]} Nb6 {[%emt 0:02:30]} 12. Nh4 {[%emt 0:01:30]} Qd7 {[%emt 0:01:30]} 13. Qf3 {[%emt 0:05:30]} O-O {[%emt 0:05:30]} 14. Nf5 {[%emt 0:02:30]} Bxf5 {[%emt 0:02:30]} 15. Bxf5 {[%emt 0:01:30]} Qc7 {[%emt 0:01:30]} 16. Be4 {[%emt 0:02:30]} Rac8 {[%emt 0:17:30]} 17. Bh6 {[%emt 0:03:30]} Rfe8 {[%emt 0:05:30]} 18. Rfe1 {[%emt 0:00:30]} Nd5 {[%emt 0:11:30]} 19. Bxg7 {[%emt 0:15:30]} Rxe4 {[%emt 0:04:30]} 20. Rxe4 {[%emt 0:02:30]} Kxg7 {[%emt 0:00:30]} 21. Qh5 {[%emt 0:13:30]} Nf4 {[%emt 0:04:30]} 22. Qg4+ {[%emt 0:01:30]} Ng6 {[%emt 0:08:30]} 23. h4 {[%emt 0:00:00]} h5 {[%emt 0:01:30]} 24. Qxh5 {[%emt 0:01:00]} Rh8 {[%emt 0:00:00]} 25. Qg4 {[%emt 0:06:37]} Rxh4 {[%emt 0:00:00]} 26. Qf3 {[%emt 0:00:30]} Rxe4 {[%emt 0:05:30]} 27. Qxe4 {[%emt 0:00:30]} Qd7 {[%emt 0:00:30]} 28. Re1 {[%emt 0:00:30]} Be7 {[%emt 0:00:30]} 29. c3 {[%emt 0:00:30]} f5 {[%emt 0:00:30]} 30. Qf3 {[%emt 0:00:30]} Qd5 {[%emt 0:00:30]} 31. Qxd5 {[%emt 0:00:30]} cxd5 {[%emt 0:00:30]} 32. g3 {[%emt 0:00:30]} f4 {[%emt 0:00:30]} 33. Kg2 {[%emt 0:00:30]} Kf6 {[%emt 0:00:30]} 34. Kf3 {[%emt 0:00:30]} fxg3 {[%emt 0:00:30]} 35. fxg3 {[%emt 0:00:30]} Kf5 {[%emt 0:00:30]} 36. Re2 {[%emt 0:00:30]} a5 {[%emt 0:00:30]} 37. b4 {[%emt 0:00:30]} a4 {[%emt 0:00:30]} 38. Re1 {[%emt 0:16:11]} Kg5 {[%emt 0:12:30]} 39. Re2 {[%emt 0:00:53]} Kf6 {[%emt 0:02:10]} 40. Kg4 {[%emt 0:00:13]} Kg7 {[%emt 0:01:00]} 41. Rh2 {[%emt 0:01:58]} Bd6 {[%emt 0:00:48]} 42. Rh5 {[%emt 0:00:44]} Ne7 {[%emt 0:00:04]} 43. Kf3 {[%emt 0:00:14]} Bc7 {[%emt 0:04:02]} 44. g4 {[%emt 0:00:25]} Bd6 {[%emt 0:00:55]} 45. Kf2 {[%emt 0:00:35]} Bf4 {[%emt 0:00:33]} 46. Ke2 {[%emt 0:00:24]} f6 {[%emt 0:01:09]} 47. Kd3 {[%emt 0:00:56]} Bg5 {[%emt 0:00:02]} 48. Rh1 {[%emt 0:00:12]} Ng6 {[%emt 0:01:04]} 49. Kc2 {[%emt 0:00:19]} Nf4 {[%emt 0:00:32]} 50. Re1 {[%emt 0:00:46]} Kf7 {[%emt 0:00:30]} 51. Rh1 {[%emt 0:00:00]} Kg7 {[%emt 0:00:17]} 52. Re1 {[%emt 0:00:00]} Kf8 {[%emt 0:01:24]} 53. Rh1 {[%emt 0:00:00]} Kg8 {[%emt 0:00:00]} 54. Re1 {[%emt 0:00:11]} Kf8 {[%emt 0:00:28]} 55. Rh1 {[%emt 0:00:00]} Ke7 {[%emt 0:01:24]} 56. Rh7+ {[%emt 0:00:04]} Kd6 {[%emt 0:00:00]} 57. Rh8 {[%emt 0:00:00]} Kc7 {[%emt 0:00:00]} 58. Rh7+ {[%emt 0:00:33]} Kc6 {[%emt 0:00:21]} 59. Rh8 {[%emt 0:00:00]} Ne6 {[%emt 0:00:11]} 60. Rh7 {[%emt 0:00:37]} Nd8 {[%emt 0:00:48]} 61. Rh8 {[%emt 0:04:19]} Nb7 {[%emt 0:00:01]} 62. Rc8+ {[%emt 0:00:34]} Kd7 {[%emt 0:00:08]} 63. Ra8 {[%emt 0:00:00]} Kc7 {[%emt 0:00:41]} 64. Ra7 {[%emt 0:00:41]} Kb6 {[%emt 0:00:20]} 65. Ra8 {[%emt 0:00:11]} Nd6 {[%emt 0:00:12]} 66. Kd3 {[%emt 0:00:40]} Kb7 {[%emt 0:01:34]} 67. Rd8 {[%emt 0:00:30]} Kc7 {[%emt 0:00:00]} 68. Ra8 {[%emt 0:00:00]} Nc4 {[%emt 0:00:20]} 69. Ra7+ {[%emt 0:00:34]} Kb6 {[%emt 0:00:30]} 70. Rd7 {[%emt 0:00:11]} Kc6 {[%emt 0:00:06]} 71. Rd8 {[%emt 0:00:00]} Nxa3 {[%emt 0:01:14]} 72. Rc8+ {[%emt 0:00:48]} Kb6 {[%emt 0:00:24]} 73. Rc5 {[%emt 0:00:36]} Nc4 {[%emt 0:00:31]} 74. Kc2 {[%emt 0:00:37]} Ne3+ {[%emt 0:00:30]} 75. Kb1 {[%emt 0:00:00]} Bf4 {[%emt 0:00:40]} 76. Kb2 {[%emt 0:01:16]} Bd6 {[%emt 0:00:31]} 77. Rc8 {[%emt 0:00:34]} Nxg4 {[%emt 0:00:09]} 78. Re8 {[%emt 0:00:14]} Nf2 {[%emt 0:01:23]} 79. Re6 {[%emt 0:00:30]} Ne4 {[%emt 0:00:00]} 0-1

[Event "Turkish Second League 2019"]
[Site "Konya"]
[Date "2019.07.28"]
[Round "9"]
[White "Aksoy, Ayca"]
[Black "Guclu, Yagmur"]
[Result "1/2-1/2"]
[ECO "D05"]
[WhiteElo "1914"]
[BlackElo "1516"]
[Annotator "NA"]
[PlyCount "156"]
[EventDate "2019.07.22"]
[EventType "team-tourn"]
[EventCountry "TUR"]
[SourceTitle "playchess.com"]
[Source "ChessBase"]
[SourceQuality "1"]
[TimeControl "5400+30"]

1. d4 {[%emt 0:00:30]} d5 {[%emt 0:00:30]} 2. Nf3 {[%emt 0:00:30]} Nf6 {[%emt 0:00:00]} 3. e3 {[%emt 0:00:30]} e6 {[%emt 0:01:00]} 4. Bd3 {[%emt 0:00:30]} Be7 {[%emt 0:00:30]} 5. O-O {[%emt 0:00:30]} c5 {[%emt 0:02:30]} 6. b3 {[%emt 0:00:30]} O-O {[%emt 0:00:30]} 7. Bb2 {[%emt 0:04:30]} Nc6 {[%emt 0:02:30]} 8. Nbd2 {[%emt 0:03:30]} b6 {[%emt 0:07:30]} 9. Ne5 {[%emt 0:05:30]} Bb7 {[%emt 0:04:30]} 10. Qe2 {[%emt 0:02:30]} Nb4 {[%emt 0:04:30]} 11. a3 {[%emt 0:13:30]} Nxd3 {[%emt 0:02:30]} 12. cxd3 {[%emt 0:03:30]} Rc8 {[%emt 0:06:30]} 13. dxc5 {[%emt 0:02:30]} Bxc5 {[%emt 0:03:30]} 14. b4 {[%emt 0:01:30]} Bd6 {[%emt 0:02:30]} 15. Rfc1 {[%emt 0:01:30]} Qe7 {[%emt 0:06:30]} 16. Nb3 {[%emt 0:06:30]} Rxc1+ {[%emt 0:13:30]} 17. Rxc1 {[%emt 0:00:30]} Nd7 {[%emt 0:11:30]} 18. d4 {[%emt 0:05:30]} Nb8 {[%emt 0:06:30]} 19. Nd2 {[%emt 0:02:30]} h6 {[%emt 0:02:30]} 20. Nb1 {[%emt 0:01:30]} Rc8 {[%emt 0:02:25]} 21. Nc3 {[%emt 0:06:30]} a6 {[%emt 0:04:42]} 22. Qh5 {[%emt 0:03:30]} b5 {[%emt 0:06:30]} 23. f4 {[%emt 0:00:30]} Nd7 {[%emt 0:04:18]} 24. Nxd7 {[%emt 0:05:30]} Qxd7 {[%emt 0:00:04]} 25. Kf2 {[%emt 0:02:30]} Qe7 {[%emt 0:01:07]} 26. g3 {[%emt 0:05:30]} Qd8 {[%emt 0:02:14]} 27. Qd1 {[%emt 0:00:30]} Qb6 {[%emt 0:00:45]} 28. Nb1 {[%emt 0:02:14]} Rxc1 {[%emt 0:01:20]} 29. Qxc1 {[%emt 0:00:27]} a5 {[%emt 0:00:51]} 30. Bc3 {[%emt 0:04:45]} a4 {[%emt 0:00:34]} 31. Nd2 {[%emt 0:00:54]} Qc7 {[%emt 0:00:27]} 32. Nf3 {[%emt 0:02:50]} Bc8 {[%emt 0:00:34]} 33. Qd2 {[%emt 0:01:49]} Qc4 {[%emt 0:00:27]} 34. h3 {[%emt 0:00:43]} Qc7 {[%emt 0:00:34]} 35. g4 {[%emt 0:00:39]} Qe7 {[%emt 0:00:26]} 36. Qd3 {[%emt 0:00:49]} Bd7 {[%emt 0:00:33]} 37. Be1 {[%emt 0:03:14]} Qe8 {[%emt 0:00:30]} 38. Ke2 {[%emt 0:01:01]} Qc8 {[%emt 0:00:27]} 39. Bd2 {[%emt 0:01:12]} Qe8 {[%emt 0:00:26]} 40. Kd1 {[%emt 0:03:41]} Qe7 {[%emt 0:00:34]} 41. Be1 {[%emt 0:01:25]} Qe8 {[%emt 0:00:30]} 42. Bh4 {[%emt 0:00:46]} Qc8 {[%emt 0:00:34]} 43. Nd2 {[%emt 0:00:35]} Qc7 {[%emt 0:00:29]} 44. Be1 {[%emt 0:01:37]} Qc8 {[%emt 0:00:30]} 45. Bh4 {[%emt 0:00:25]} Qe8 {[%emt 0:00:25]} 46. f5 {[%emt 0:00:46]} Qc8 {[%emt 0:00:38]} 47. fxe6 {[%emt 0:00:57]} fxe6 {[%emt 0:00:11]} 48. Nf3 {[%emt 0:00:00]} Qf8 {[%emt 0:00:30]} 49. Nd2 {[%emt 0:00:35]} Bc6 {[%emt 0:00:47]} 50. Qg6 {[%emt 0:00:23]} Qf7 {[%emt 0:00:31]} 51. Qc2 {[%emt 0:00:21]} Qe8 {[%emt 0:00:24]} 52. Nf3 {[%emt 0:00:37]} Bd7 {[%emt 0:00:32]} 53. Ke2 {[%emt 0:00:40]} Qf8 {[%emt 0:00:34]} 54. g5 {[%emt 0:00:26]} h5 {[%emt 0:00:30]} 55. Qg6 {[%emt 0:00:52]} Qe8 {[%emt 0:00:21]} 56. Qd3 {[%emt 0:00:01]} Qf7 {[%emt 0:00:39]} 57. Be1 {[%emt 0:00:42]} Qe7 {[%emt 0:00:29]} 58. Bd2 {[%emt 0:00:22]} Be8 {[%emt 0:00:25]} 59. Qc2 {[%emt 0:00:30]} Qc7 {[%emt 0:00:35]} 60. Qd3 {[%emt 0:00:17]} Qe7 {[%emt 0:00:28]} 61. h4 {[%emt 0:00:15]} Qf7 {[%emt 0:00:34]} 62. Qc2 {[%emt 0:00:54]} Qc7 {[%emt 0:00:28]} 63. Qd3 {[%emt 0:00:21]} Qd7 {[%emt 0:00:31]} 64. Be1 {[%emt 0:00:44]} Qc7 {[%emt 0:00:34]} 65. Bd2 {[%emt 0:00:14]} Qb7 {[%emt 0:00:26]} 66. Be1 {[%emt 0:00:44]} Qc8 {[%emt 0:00:30]} 67. Bd2 {[%emt 0:00:27]} Qb7 {[%emt 0:00:34]} 68. Be1 {[%emt 0:00:05]} Qe7 {[%emt 0:00:25]} 69. Bd2 {[%emt 0:00:17]} Qa7 {[%emt 0:00:32]} 70. Be1 {[%emt 0:01:14]} Qc7 {[%emt 0:00:51]} 71. Bd2 {[%emt 0:00:03]} Qf7 {[%emt 0:00:09]} 72. Qc2 {[%emt 0:00:58]} Qc7 {[%emt 0:00:30]} 73. Qd3 {[%emt 0:00:00]} Qb7 {[%emt 0:00:29]} 74. Be1 {[%emt 0:00:00]} Qc8 {[%emt 0:00:28]} 75. Bd2 {[%emt 0:00:00]} Qd8 {[%emt 0:00:29]} 76. Be1 {[%emt 0:00:23]} Qe7 {[%emt 0:00:34]} 77. Bd2 {[%emt 0:00:19]} Bd7 {[%emt 0:00:31]} 78. Be1 {[%emt 0:00:30]} Qe8 {[%emt 0:00:28]} 1/2-1/2

[Event "Turkish Second League 2019"]
[Site "Konya"]
[Date "2019.07.28"]
[Round "9"]
[White "Akdag, Omer Amir"]
[Black "Ozenir, Ekin Baris"]
[Result "1/2-1/2"]
[ECO "A47"]
[WhiteElo "1903"]
[BlackElo "2235"]
[Annotator "NA"]
[PlyCount "100"]
[EventDate "2019.07.22"]
[EventType "team-tourn"]
[EventCountry "TUR"]
[SourceTitle "playchess.com"]
[Source "ChessBase"]
[SourceQuality "1"]
[TimeControl "5400+30"]

1. d4 {[%emt 0:00:30]} Nf6 {[%emt 0:00:30]} 2. Nf3 {[%emt 0:00:00]} b6 {[%emt 0:00:30]} 3. e3 {[%emt 0:01:00]} Bb7 {[%emt 0:00:30]} 4. Bd3 {[%emt 0:00:00]} g6 {[%emt 0:00:30]} 5. b3 {[%emt 0:00:00]} Bg7 {[%emt 0:00:30]} 6. Bb2 {[%emt 0:00:00]} d6 {[%emt 0:00:30]} 7. O-O {[%emt 0:01:00]} O-O {[%emt 0:00:30]} 8. c4 {[%emt 0:00:30]} e5 {[%emt 0:03:30]} 9. dxe5 {[%emt 0:02:30]} Nfd7 {[%emt 0:00:30]} 10. Nc3 {[%emt 0:00:30]} dxe5 {[%emt 0:01:30]} 11. Be4 {[%emt 0:00:30]} c6 {[%emt 0:06:30]} 12. Bc2 {[%emt 0:00:30]} Qe7 {[%emt 0:02:30]} 13. e4 {[%emt 0:01:30]} Rd8 {[%emt 0:03:30]} 14. Qc1 {[%emt 0:05:30]} Bf8 {[%emt 0:04:30]} 15. Qe3 {[%emt 0:08:30]} Na6 {[%emt 0:01:30]} 16. Rfd1 {[%emt 0:07:30]} Nc7 {[%emt 0:04:30]} 17. Ne2 {[%emt 0:12:30]} f6 {[%emt 0:11:30]} 18. Rd2 {[%emt 0:07:30]} Ne6 {[%emt 0:02:30]} 19. Re1 {[%emt 0:03:30]} Qe8 {[%emt 0:05:30]} 20. a3 {[%emt 0:01:30]} Rac8 {[%emt 0:09:30]} 21. Red1 {[%emt 0:11:30]} Be7 {[%emt 0:03:30]} 22. Qh6 {[%emt 0:08:30]} Ndf8 {[%emt 0:06:30]} 23. Rxd8 {[%emt 0:01:30]} Bxd8 {[%emt 0:02:30]} 24. Qe3 {[%emt 0:01:30]} Be7 {[%emt 0:02:30]} 25. Qc3 {[%emt 0:10:55]} Qf7 {[%emt 0:04:30]} 26. Qe1 {[%emt 0:00:38]} Re8 {[%emt 0:02:30]} 27. Nc3 {[%emt 0:02:16]} Bc8 {[%emt 0:02:12]} 28. b4 {[%emt 0:00:53]} Nf4 {[%emt 0:01:02]} 29. Ba4 {[%emt 0:07:10]} Qxc4 {[%emt 0:09:59]} 30. Nd2 {[%emt 0:00:48]} Qf7 {[%emt 0:02:41]} 31. Bxc6 {[%emt 0:00:26]} Rd8 {[%emt 0:00:32]} 32. Qf1 {[%emt 0:01:19]} Bg4 {[%emt 0:01:41]} 33. Nf3 {[%emt 0:01:31]} Rc8 {[%emt 0:03:47]} 34. b5 {[%emt 0:01:46]} N8e6 {[%emt 0:01:29]} 35. Nd5 {[%emt 0:00:39]} Bxf3 {[%emt 0:00:52]} 36. gxf3 {[%emt 0:00:19]} Nxd5 {[%emt 0:00:12]} 37. exd5 {[%emt 0:00:12]} Nf4 {[%emt 0:00:30]} 38. d6 {[%emt 0:00:20]} Bf8 {[%emt 0:00:28]} 39. Bc1 {[%emt 0:00:31]} Ne6 {[%emt 0:00:32]} 40. Qc4 {[%emt 0:00:36]} Kg7 {[%emt 0:00:31]} 41. d7 {[%emt 0:00:27]} Rd8 {[%emt 0:00:28]} 42. Kg2 {[%emt 0:01:32]} Nf4+ {[%emt 0:00:07]} 43. Qxf4 {[%emt 0:00:09]} exf4 {[%emt 0:00:04]} 44. Bxf4 {[%emt 0:00:00]} Be7 {[%emt 0:01:35]} 45. Bc7 {[%emt 0:00:00]} Rf8 {[%emt 0:00:15]} 46. Bd5 {[%emt 0:00:00]} Bd8 {[%emt 0:00:32]} 47. Bxf7 {[%emt 0:00:07]} Kxf7 {[%emt 0:00:23]} 48. Bd6 {[%emt 0:01:08]} Be7 {[%emt 0:00:29]} 49. Bc7 {[%emt 0:01:05]} Bd8 {[%emt 0:00:04]} 50. Bd6 {[%emt 0:01:20]} Be7 {[%emt 0:00:03]} 1/2-1/2

[Event "Turkish Second League 2019"]
[Site "Konya"]
[Date "2019.07.28"]
[Round "9"]
[White "Demirtas, Hafize"]
[Black "Abdimanoglu, Beste Basak"]
[Result "1/2-1/2"]
[ECO "B09"]
[WhiteElo "1893"]
[BlackElo "1898"]
[Annotator "NA"]
[PlyCount "155"]
[EventDate "2019.07.22"]
[EventType "team-tourn"]
[EventCountry "TUR"]
[SourceTitle "playchess.com"]
[Source "ChessBase"]
[SourceQuality "1"]
[TimeControl "5400+30"]

1. e4 {[%emt 0:00:30]} g6 {[%emt 0:00:30]} 2. d4 {[%emt 0:00:30]} Bg7 {[%emt 0:00:30]} 3. Nc3 {[%emt 0:00:00]} d6 {[%emt 0:00:00]} 4. f4 {[%emt 0:00:00]} Nf6 {[%emt 0:00:00]} 5. Nf3 {[%emt 0:00:00]} O-O {[%emt 0:00:00]} 6. Bd3 {[%emt 0:00:00]} Nc6 {[%emt 0:00:00]} 7. e5 {[%emt 0:02:30]} dxe5 {[%emt 0:00:30]} 8. dxe5 {[%emt 0:00:30]} Nd5 {[%emt 0:00:30]} 9. O-O {[%emt 0:00:30]} Nxc3 {[%emt 0:07:30]} 10. bxc3 {[%emt 0:00:30]} f6 {[%emt 0:00:00]} 11. Bc4+ {[%emt 0:03:30]} Kh8 {[%emt 0:00:00]} 12. Qe1 {[%emt 0:02:30]} Bg4 {[%emt 0:13:30]} 13. exf6 {[%emt 0:03:30]} exf6 {[%emt 0:00:30]} 14. Ba3 {[%emt 0:00:30]} Re8 {[%emt 0:09:30]} 15. Qh4 {[%emt 0:01:30]} Bxf3 {[%emt 0:01:30]} 16. Rxf3 {[%emt 0:01:30]} f5 {[%emt 0:07:30]} 17. Qh3 {[%emt 0:09:30]} Re4 {[%emt 0:19:30]} 18. Bd3 {[%emt 0:07:30]} Bxc3 {[%emt 0:05:30]} 19. Raf1 {[%emt 0:08:30]} Qd4+ {[%emt 0:17:39]} 20. Kh1 {[%emt 0:01:30]} Re1 {[%emt 0:01:03]} 21. Bb5 {[%emt 0:25:30]} Rxf1+ {[%emt 0:02:00]} 22. Rxf1 {[%emt 0:02:30]} Re8 {[%emt 0:03:11]} 23. Bc1 {[%emt 0:01:30]} a6 {[%emt 0:04:03]} 24. Bxc6 {[%emt 0:04:30]} bxc6 {[%emt 0:00:12]} 25. Qf3 {[%emt 0:00:30]} Qc5 {[%emt 0:01:33]} 26. h4 {[%emt 0:01:30]} Bf6 {[%emt 0:01:04]} 27. Qd3 {[%emt 0:01:30]} Qb5 {[%emt 0:01:24]} 28. c4 {[%emt 0:06:47]} Qc5 {[%emt 0:00:07]} 29. Qb3 {[%emt 0:02:59]} Qb6 {[%emt 0:00:56]} 30. Qd3 {[%emt 0:02:23]} Qd4 {[%emt 0:01:06]} 31. Qb3 {[%emt 0:07:09]} Qc3 {[%emt 0:00:21]} 32. Kh2 {[%emt 0:01:38]} Qxb3 {[%emt 0:01:47]} 33. axb3 {[%emt 0:00:01]} Bxh4 {[%emt 0:00:00]} 34. Bb2+ {[%emt 0:00:39]} Kg8 {[%emt 0:00:00]} 35. Be5 {[%emt 0:00:57]} Rd8 {[%emt 0:02:15]} 36. Rf3 {[%emt 0:01:41]} Rd7 {[%emt 0:00:28]} 37. b4 {[%emt 0:00:18]} Be7 {[%emt 0:01:00]} 38. c5 {[%emt 0:00:36]} Kf7 {[%emt 0:01:02]} 39. Ra3 {[%emt 0:00:11]} Bf6 {[%emt 0:00:23]} 40. Bxf6 {[%emt 0:01:12]} Kxf6 {[%emt 0:00:30]} 41. Rxa6 {[%emt 0:00:00]} Ke6 {[%emt 0:00:08]} 42. Rxc6+ {[%emt 0:00:31]} Kd5 {[%emt 0:00:03]} 43. b5 {[%emt 0:00:18]} Re7 {[%emt 0:00:39]} 44. Kg3 {[%emt 0:00:35]} Kc4 {[%emt 0:01:07]} 45. b6 {[%emt 0:01:07]} cxb6 {[%emt 0:00:30]} 46. cxb6+ {[%emt 0:00:00]} Kb5 {[%emt 0:00:00]} 47. Rf6 {[%emt 0:00:00]} Rb7 {[%emt 0:00:58]} 48. Kh4 {[%emt 0:00:54]} Kc5 {[%emt 0:00:53]} 49. Kg5 {[%emt 0:00:36]} Kd5 {[%emt 0:00:11]} 50. g3 {[%emt 0:00:37]} Ke4 {[%emt 0:00:28]} 51. Re6+ {[%emt 0:00:28]} Kf3 {[%emt 0:00:44]} 52. Kh4 {[%emt 0:00:23]} Kf2 {[%emt 0:00:18]} 53. Rc6 {[%emt 0:00:43]} Kf3 {[%emt 0:00:19]} 54. Rd6 {[%emt 0:00:20]} Ke4 {[%emt 0:00:21]} 55. Kg5 {[%emt 0:00:23]} Kf3 {[%emt 0:00:48]} 56. Rd3+ {[%emt 0:00:49]} Ke4 {[%emt 0:00:40]} 57. Rb3 {[%emt 0:00:12]} Kd4 {[%emt 0:00:15]} 58. g4 {[%emt 0:01:06]} fxg4 {[%emt 0:00:49]} 59. Kxg4 {[%emt 0:00:02]} Kd5 {[%emt 0:00:14]} 60. Kg5 {[%emt 0:00:23]} Ke6 {[%emt 0:00:45]} 61. Rb5 {[%emt 0:00:26]} Kf7 {[%emt 0:00:23]} 62. Kh6 {[%emt 0:01:17]} Kf6 {[%emt 0:00:21]} 63. Rb2 {[%emt 0:00:25]} Kf5 {[%emt 0:00:28]} 64. Rb4 {[%emt 0:00:02]} Kf6 {[%emt 0:00:46]} 65. Rb5 {[%emt 0:00:01]} Ke6 {[%emt 0:00:00]} 66. Kg5 {[%emt 0:00:17]} Kf7 {[%emt 0:00:05]} 67. f5 {[%emt 0:01:10]} gxf5 {[%emt 0:00:48]} 68. Kxf5 {[%emt 0:00:13]} Ke7 {[%emt 0:00:00]} 69. Ke5 {[%emt 0:00:23]} h5 {[%emt 0:00:59]} 70. Kd5 {[%emt 0:00:22]} Kd7 {[%emt 0:00:28]} 71. Kc5 {[%emt 0:00:30]} Kc8 {[%emt 0:01:22]} 72. Rb4 {[%emt 0:01:50]} Rh7 {[%emt 0:00:12]} 73. Rh4 {[%emt 0:00:06]} Kb7 {[%emt 0:00:53]} 74. Ra4 {[%emt 0:00:08]} Kb8 {[%emt 0:00:00]} 75. Rh4 {[%emt 0:00:42]} Kb7 {[%emt 0:00:11]} 76. Ra4 {[%emt 0:00:44]} Kb8 {[%emt 0:00:05]} 77. Rh4 {[%emt 0:00:18]} Kb7 {[%emt 0:00:48]} 78. Ra4 {[%emt 0:00:07]} 1/2-1/2

[Event "Turkish Second League 2019"]
[Site "Konya"]
[Date "2019.07.28"]
[Round "9"]
[White "Camlar, Arda"]
[Black "Celikel, Fatih"]
[Result "1-0"]
[ECO "B06"]
[WhiteElo "1889"]
[BlackElo "1868"]
[Annotator "NA"]
[PlyCount "99"]
[EventDate "2019.07.22"]
[EventType "team-tourn"]
[EventCountry "TUR"]
[SourceTitle "playchess.com"]
[Source "ChessBase"]
[SourceQuality "1"]
[TimeControl "5400+30"]

1. e4 {[%emt 0:03:30]} g6 {[%emt 0:00:30]} 2. d4 {[%emt 0:00:30]} Bg7 {[%emt 0:00:00]} 3. Nc3 {[%emt 0:00:30]} c6 {[%emt 0:00:00]} 4. Bc4 {[%emt 0:00:30]} b5 {[%emt 0:01:30]} 5. Bb3 {[%emt 0:01:30]} b4 {[%emt 0:06:30]} 6. Nce2 {[%emt 0:01:30]} d5 {[%emt 0:07:30]} 7. e5 {[%emt 0:05:30]} a5 {[%emt 0:02:30]} 8. a3 {[%emt 0:03:30]} bxa3 {[%emt 0:05:30]} 9. Rxa3 {[%emt 0:00:30]} e6 {[%emt 0:00:30]} 10. Bd2 {[%emt 0:01:30]} c5 {[%emt 0:09:30]} 11. Nf3 {[%emt 0:06:30]} Ne7 {[%emt 0:02:30]} 12. O-O {[%emt 0:11:30]} O-O {[%emt 0:02:30]} 13. dxc5 {[%emt 0:09:30]} Nd7 {[%emt 0:03:30]} 14. Ned4 {[%emt 0:07:30]} Nxc5 {[%emt 0:05:30]} 15. Bg5 {[%emt 0:03:30]} Bd7 {[%emt 0:04:30]} 16. c4 {[%emt 0:05:30]} Nxb3 {[%emt 0:08:30]} 17. Nxb3 {[%emt 0:01:30]} h6 {[%emt 0:05:30]} 18. Bxe7 {[%emt 0:05:30]} Qxe7 {[%emt 0:00:30]} 19. Nxa5 {[%emt 0:00:30]} Qb4 {[%emt 0:01:30]} 20. Qa1 {[%emt 0:00:30]} dxc4 {[%emt 0:00:30]} 21. Nxc4 {[%emt 0:06:30]} Bc6 {[%emt 0:02:30]} 22. Ncd2 {[%emt 0:03:30]} Rad8 {[%emt 0:00:30]} 23. Rc1 {[%emt 0:01:03]} Bd5 {[%emt 0:06:30]} 24. Rac3 {[%emt 0:04:11]} Qf4 {[%emt 0:01:30]} 25. Qb1 {[%emt 0:04:12]} Bxe5 {[%emt 0:05:36]} 26. Nxe5 {[%emt 0:02:12]} Qxe5 {[%emt 0:00:29]} 27. Nf1 {[%emt 0:01:18]} Rb8 {[%emt 0:02:41]} 28. Ne3 {[%emt 0:02:18]} Be4 {[%emt 0:01:08]} 29. Qa2 {[%emt 0:00:49]} Rb5 {[%emt 0:02:44]} 30. Qc4 {[%emt 0:01:00]} Rxb2 {[%emt 0:03:53]} 31. Ng4 {[%emt 0:00:26]} Qg7 {[%emt 0:04:05]} 32. Qxe4 {[%emt 0:00:13]} h5 {[%emt 0:02:27]} 33. Ne5 {[%emt 0:01:13]} Rb5 {[%emt 0:00:29]} 34. f4 {[%emt 0:01:28]} Rd5 {[%emt 0:00:51]} 35. Rc8 {[%emt 0:01:44]} Kh7 {[%emt 0:01:35]} 36. h3 {[%emt 0:02:30]} Rd2 {[%emt 0:01:18]} 37. Rxf8 {[%emt 0:00:18]} Qxf8 {[%emt 0:00:17]} 38. Rc7 {[%emt 0:00:05]} Kg8 {[%emt 0:00:36]} 39. Rxf7 {[%emt 0:00:38]} Rd1+ {[%emt 0:00:43]} 40. Kh2 {[%emt 0:00:01]} Qxf7 {[%emt 0:00:46]} 41. Nxf7 {[%emt 0:00:03]} Kxf7 {[%emt 0:00:00]} 42. g4 {[%emt 0:00:53]} hxg4 {[%emt 0:00:51]} 43. hxg4 {[%emt 0:00:01]} Rd5 {[%emt 0:00:00]} 44. Kg3 {[%emt 0:00:36]} Kf6 {[%emt 0:00:36]} 45. g5+ {[%emt 0:00:12]} Kf7 {[%emt 0:00:37]} 46. Qb4 {[%emt 0:00:07]} Rd3+ {[%emt 0:00:45]} 47. Kg4 {[%emt 0:00:11]} Rd7 {[%emt 0:00:23]} 48. Qb2 {[%emt 0:00:03]} Rd5 {[%emt 0:00:34]} 49. Qf6+ {[%emt 0:00:09]} Kg8 {[%emt 0:00:59]} 50. Qxe6+ {[%emt 0:00:09]} 1-0